[Event "*** Titled Tuesday Blitz"]
[Site "Chess.com"]
[Date "2020.12.01"]
[Round "9"]
[White "cukin84"]
[Black "A-S-00"]
[Result "0-1"]
[WhiteElo "2168"]
[BlackElo "2297"]
[TimeControl "180+1"]
[EndTime "11:45:59 PST"]
[Termination "A-S-00 won on time"]

1. e4 {[%clk 0:03:00.9]} 1... c5 {[%clk 0:02:59.3]} 2. Nc3 {[%clk 0:03:00]} 2...
e6 {[%clk 0:02:57.4]} 3. f4 {[%clk 0:02:59]} 3... Nc6 {[%clk 0:02:56.9]} 4. Nf3
{[%clk 0:02:58.2]} 4... Nge7 {[%clk 0:02:54.6]} 5. d3 {[%clk 0:02:55]} 5... g6
{[%clk 0:02:52.1]} 6. g3 {[%clk 0:02:54.5]} 6... Bg7 {[%clk 0:02:51.8]} 7. Bg2
{[%clk 0:02:54.5]} 7... O-O {[%clk 0:02:50.9]} 8. O-O {[%clk 0:02:51.9]} 8... d5
{[%clk 0:02:50.7]} 9. Kh1 {[%clk 0:02:47.6]} 9... Rb8 {[%clk 0:02:47.8]} 10. Qe1
{[%clk 0:02:43.6]} 10... b5 {[%clk 0:02:46.6]} 11. e5 {[%clk 0:02:41.1]} 11...
Nf5 {[%clk 0:02:41.1]} 12. Nd1 {[%clk 0:02:36.5]} 12... c4 {[%clk 0:02:29.7]}
13. d4 {[%clk 0:02:31.3]} 13... Nfxd4 {[%clk 0:02:26.3]} 14. Nxd4 {[%clk
0:02:30.4]} 14... Nxd4 {[%clk 0:02:24]} 15. Qf2 {[%clk 0:02:22.9]} 15... Nc6
{[%clk 0:02:22.2]} 16. c3 {[%clk 0:02:17.8]} 16... a5 {[%clk 0:02:19.3]} 17. Be3
{[%clk 0:02:16.4]} 17... b4 {[%clk 0:02:18]} 18. h3 {[%clk 0:02:12]} 18... bxc3
{[%clk 0:02:13]} 19. bxc3 {[%clk 0:01:59.5]} 19... f6 {[%clk 0:02:10.2]} 20. Bc5
{[%clk 0:01:53.7]} 20... Re8 {[%clk 0:02:09.9]} 21. Ne3 {[%clk 0:01:43.8]} 21...
fxe5 {[%clk 0:02:04.6]} 22. fxe5 {[%clk 0:01:41.3]} 22... Nxe5 {[%clk
0:02:04.3]} 23. Ng4 {[%clk 0:01:41.2]} 23... Nxg4 {[%clk 0:01:36]} 24. Qf7+
{[%clk 0:01:39.4]} 24... Kh8 {[%clk 0:01:35.6]} 25. hxg4 {[%clk 0:01:39.3]}
25... Rb7 {[%clk 0:01:31.1]} 26. Qf2 {[%clk 0:01:19.2]} 26... e5 {[%clk
0:01:14.7]} 27. Rad1 {[%clk 0:01:13.4]} 27... Be6 {[%clk 0:01:13.9]} 28. Qc2
{[%clk 0:01:03.2]} 28... Rd7 {[%clk 0:01:03.9]} 29. Qa4 {[%clk 0:00:57.1]} 29...
e4 {[%clk 0:00:28.4]} 30. Qa3 {[%clk 0:00:28.2]} 30... Bxg4 {[%clk 0:00:20.9]}
31. Rd2 {[%clk 0:00:27.2]} 31... Qg5 {[%clk 0:00:18.5]} 32. Rdf2 {[%clk
0:00:25.8]} 32... Qh5+ {[%clk 0:00:17.7]} 33. Kg1 {[%clk 0:00:25.2]} 33... Bf5
{[%clk 0:00:17.7]} 34. Qa4 {[%clk 0:00:18.9]} 34... Rdd8 {[%clk 0:00:14.8]} 35.
Bb6 {[%clk 0:00:18.5]} 35... Rb8 {[%clk 0:00:13.4]} 36. Bd4 {[%clk 0:00:18.2]}
36... Bxd4 {[%clk 0:00:12.9]} 37. cxd4 {[%clk 0:00:19.1]} 37... e3 {[%clk
0:00:12]} 38. Rf4 {[%clk 0:00:18.3]} 38... e2 {[%clk 0:00:10.9]} 39. Re1 {[%clk
0:00:18.5]} 39... Qg5 {[%clk 0:00:07]} 40. Kf2 {[%clk 0:00:17]} 40... Qf6 {[%clk
0:00:05.6]} 41. Bf3 {[%clk 0:00:16.7]} 41... g5 {[%clk 0:00:04.3]} 42. Rxf5
{[%clk 0:00:15.6]} 42... Qxf5 {[%clk 0:00:04.6]} 43. Qc6 {[%clk 0:00:15.2]}
43... Rbc8 {[%clk 0:00:03.9]} 44. Qd6 {[%clk 0:00:14.8]} 44... Rcd8 {[%clk
0:00:03.1]} 45. Qc5 {[%clk 0:00:14.7]} 45... Qf6 {[%clk 0:00:03.1]} 46. Kg2
{[%clk 0:00:14.1]} 46... h6 {[%clk 0:00:02.5]} 47. Rxe2 {[%clk 0:00:14.5]} 47...
Rxe2+ {[%clk 0:00:02.2]} 48. Bxe2 {[%clk 0:00:15.4]} 48... Re8 {[%clk
0:00:02.8]} 49. Bf3 {[%clk 0:00:15.7]} 49... Qe6 {[%clk 0:00:03.3]} 50. Qc7
{[%clk 0:00:15]} 50... Qe7 {[%clk 0:00:03.4]} 51. Qc5 {[%clk 0:00:14.4]} 51...
Kg7 {[%clk 0:00:03.9]} 52. Qxd5 {[%clk 0:00:14.3]} 52... Rd8 {[%clk 0:00:03.7]}
53. Qf5 {[%clk 0:00:14]} 53... Qf7 {[%clk 0:00:03.8]} 54. Qe4 {[%clk 0:00:14]}
54... Qf6 {[%clk 0:00:04]} 55. Qb7+ {[%clk 0:00:13.6]} 55... Kg8 {[%clk
0:00:02.9]} 56. d5 {[%clk 0:00:13.9]} 56... Re8 {[%clk 0:00:02.9]} 57. d6 {[%clk
0:00:13.9]} 57... c3 {[%clk 0:00:03.2]} 58. d7 {[%clk 0:00:14]} 58... Rd8 {[%clk
0:00:03.1]} 59. Qd5+ {[%clk 0:00:13.4]} 59... Kf8 {[%clk 0:00:03.3]} 60. Qc5+
{[%clk 0:00:13]} 60... Kg8 {[%clk 0:00:02.4]} 61. Bg4 {[%clk 0:00:13.2]} 61...
Kh8 {[%clk 0:00:02.6]} 62. Kh3 {[%clk 0:00:12.3]} 62... Kg8 {[%clk 0:00:02.9]}
63. Qc4+ {[%clk 0:00:12.1]} 63... Kh8 {[%clk 0:00:03.1]} 64. Qc5 {[%clk
0:00:12.5]} 64... Qf1+ {[%clk 0:00:03.1]} 65. Kh2 {[%clk 0:00:10.4]} 65... Qf6
{[%clk 0:00:04]} 66. Qc4 {[%clk 0:00:10]} 66... Kh7 {[%clk 0:00:03.9]} 67. Qe4+
{[%clk 0:00:09.8]} 67... Kg7 {[%clk 0:00:04.3]} 68. Qe8 {[%clk 0:00:09.7]} 68...
Qf2+ {[%clk 0:00:03]} 69. Kh3 {[%clk 0:00:08.2]} 69... Qf6 {[%clk 0:00:03.6]}
70. Qe4 {[%clk 0:00:05.6]} 70... Qd6 {[%clk 0:00:02.9]} 71. Qe8 {[%clk
0:00:04.8]} 71... Qf6 {[%clk 0:00:02.9]} 72. Qe4 {[%clk 0:00:04.5]} 72... a4
{[%clk 0:00:03.2]} 73. Qe8 {[%clk 0:00:04.4]} 73... c2 {[%clk 0:00:02.8]} 74.
Bh5 {[%clk 0:00:04.5]} 74... c1=Q {[%clk 0:00:02]} 75. Qe4 {[%clk 0:00:04.3]}
75... Qcf1+ {[%clk 0:00:01.3]} 76. Kg4 {[%clk 0:00:04.4]} 76... Qe1 {[%clk
0:00:01.1]} 77. Qxe1 {[%clk 0:00:02]} 77... Rxd7 {[%clk 0:00:01.5]} 78. Kh3
{[%clk 0:00:01.8]} 78... Rd4 {[%clk 0:00:01.9]} 79. Qe8 {[%clk 0:00:01.5]} 79...
Rd6 {[%clk 0:00:01.5]} 80. Bg4 {[%clk 0:00:01.2]} 80... Qf1+ {[%clk 0:00:01.2]}
0-1

[Event "*** Titled Tuesday Blitz"]
[Site "Chess.com"]
[Date "2020.12.01"]
[Round "9"]
[White "biostatistician"]
[Black "SergeiAza"]
[Result "1/2-1/2"]
[WhiteElo "2604"]
[BlackElo "2826"]
[TimeControl "180+1"]
[EndTime "11:46:06 PST"]
[Termination "Game drawn by repetition"]

1. d4 {[%clk 0:02:59.3]} 1... f5 {[%clk 0:02:58.3]} 2. Bg5 {[%clk 0:02:58.8]}
2... g6 {[%clk 0:02:48.2]} 3. Nd2 {[%clk 0:02:58.3]} 3... d5 {[%clk 0:02:45.5]}
4. Ngf3 {[%clk 0:02:56.7]} 4... Bg7 {[%clk 0:02:44.9]} 5. e3 {[%clk 0:02:57]}
5... Nd7 {[%clk 0:02:43.7]} 6. c4 {[%clk 0:02:57]} 6... c6 {[%clk 0:02:43.1]} 7.
cxd5 {[%clk 0:02:55.5]} 7... cxd5 {[%clk 0:02:43.3]} 8. Bd3 {[%clk 0:02:53.6]}
8... Ngf6 {[%clk 0:02:41.5]} 9. O-O {[%clk 0:02:54]} 9... O-O {[%clk 0:02:41.3]}
10. Rc1 {[%clk 0:02:53.8]} 10... Nh5 {[%clk 0:02:10.2]} 11. Qb3 {[%clk
0:02:48.3]} 11... Ndf6 {[%clk 0:02:09.4]} 12. Ne5 {[%clk 0:02:37.1]} 12... h6
{[%clk 0:01:41.7]} 13. Bh4 {[%clk 0:02:37.1]} 13... g5 {[%clk 0:01:35.6]} 14.
Bg3 {[%clk 0:02:37.4]} 14... Nxg3 {[%clk 0:01:08.3]} 15. hxg3 {[%clk 0:02:36.1]}
15... e6 {[%clk 0:01:07]} 16. Rc2 {[%clk 0:02:27.5]} 16... Ne4 {[%clk
0:01:01.1]} 17. Rfc1 {[%clk 0:02:21.2]} 17... Qb6 {[%clk 0:00:49]} 18. Qxb6
{[%clk 0:02:12.7]} 18... axb6 {[%clk 0:00:48.8]} 19. a3 {[%clk 0:02:13.3]} 19...
Bxe5 {[%clk 0:00:37.2]} 20. dxe5 {[%clk 0:02:14.2]} 20... Nxd2 {[%clk
0:00:36.9]} 21. Rxd2 {[%clk 0:02:14.7]} 21... Bd7 {[%clk 0:00:37.4]} 22. Rc3
{[%clk 0:02:06.6]} 22... Rfc8 {[%clk 0:00:18.6]} 23. Rdc2 {[%clk 0:02:00.4]}
23... Rxc3 {[%clk 0:00:17.6]} 24. Rxc3 {[%clk 0:02:01.2]} 24... b5 {[%clk
0:00:17.2]} 25. Rb3 {[%clk 0:01:47.8]} 25... Ra5 {[%clk 0:00:16.4]} 26. Kf1
{[%clk 0:01:46.2]} 26... Bc6 {[%clk 0:00:16.7]} 27. Ke2 {[%clk 0:01:45.8]} 27...
Kf7 {[%clk 0:00:16.5]} 28. f3 {[%clk 0:01:43.8]} 28... h5 {[%clk 0:00:15.3]} 29.
Kd2 {[%clk 0:01:43.5]} 29... Ke7 {[%clk 0:00:15.3]} 30. Kc3 {[%clk 0:01:43.6]}
30... Kd7 {[%clk 0:00:15.3]} 31. Kb4 {[%clk 0:01:43.9]} 31... Ra4+ {[%clk
0:00:13.8]} 32. Kc3 {[%clk 0:01:34.2]} 32... Ra5 {[%clk 0:00:14]} 33. Kd4 {[%clk
0:01:23.8]} 33... Kc7 {[%clk 0:00:13.2]} 34. Rb4 {[%clk 0:01:16.3]} 34... Kb6
{[%clk 0:00:13]} 35. Kc3 {[%clk 0:01:13.8]} 35... Ra8 {[%clk 0:00:12.8]} 36. Kd2
{[%clk 0:01:08.2]} 36... Kc5 {[%clk 0:00:12.7]} 37. Rb3 {[%clk 0:01:03.1]} 37...
Rh8 {[%clk 0:00:12.6]} 38. Rc3+ {[%clk 0:01:03.3]} 38... Kb6 {[%clk 0:00:12.7]}
39. Rc1 {[%clk 0:01:03.3]} 39... h4 {[%clk 0:00:13]} 40. Rh1 {[%clk 0:01:02.8]}
40... Rg8 {[%clk 0:00:11.2]} 41. gxh4 {[%clk 0:00:59]} 41... gxh4 {[%clk
0:00:12.1]} 42. Bf1 {[%clk 0:00:59.6]} 42... d4 {[%clk 0:00:08]} 43. exd4 {[%clk
0:00:57.5]} 43... Rd8 {[%clk 0:00:07.7]} 44. Ke3 {[%clk 0:00:57.4]} 44... f4+
{[%clk 0:00:07.6]} 45. Kxf4 {[%clk 0:00:48.1]} 45... Rxd4+ {[%clk 0:00:06.9]}
46. Ke3 {[%clk 0:00:48.7]} 46... Rd1 {[%clk 0:00:07.2]} 47. Kf2 {[%clk
0:00:31.6]} 47... Rb1 {[%clk 0:00:07.7]} 48. b4 {[%clk 0:00:30.1]} 48... Rb2+
{[%clk 0:00:07.8]} 49. Kg1 {[%clk 0:00:28.3]} 49... Ra2 {[%clk 0:00:07.5]} 50.
Rxh4 {[%clk 0:00:28.2]} 50... Rxa3 {[%clk 0:00:08.4]} 51. Kf2 {[%clk 0:00:27.1]}
51... Ra2+ {[%clk 0:00:07.8]} 52. Ke3 {[%clk 0:00:27]} 52... Rb2 {[%clk
0:00:07]} 53. g4 {[%clk 0:00:26.1]} 53... Bd5 {[%clk 0:00:07.3]} 54. g5 {[%clk
0:00:25.5]} 54... Rb3+ {[%clk 0:00:07.9]} 55. Kf2 {[%clk 0:00:24.3]} 55... Rxf3+
{[%clk 0:00:07.9]} 56. Ke2 {[%clk 0:00:24.9]} 56... Rg3 {[%clk 0:00:08]} 57. Bh3
{[%clk 0:00:19]} 57... Rxg5 {[%clk 0:00:07.1]} 58. Ke3 {[%clk 0:00:18.1]} 58...
Rxe5+ {[%clk 0:00:07.4]} 59. Kd4 {[%clk 0:00:18.6]} 59... Re1 {[%clk 0:00:07.3]}
60. Rh6 {[%clk 0:00:18.8]} 60... Rd1+ {[%clk 0:00:07.1]} 61. Ke5 {[%clk
0:00:18.9]} 61... Re1+ {[%clk 0:00:06.7]} 62. Kd6 {[%clk 0:00:19.4]} 62... Rh1
{[%clk 0:00:06.8]} 63. Rh7 {[%clk 0:00:17.7]} 63... Bg2 {[%clk 0:00:04.6]} 64.
Bf5 {[%clk 0:00:17]} 64... Rd1+ {[%clk 0:00:04.5]} 65. Kxe6 {[%clk 0:00:17.5]}
65... Bd5+ {[%clk 0:00:03.6]} 66. Ke5 {[%clk 0:00:17.5]} 66... Bc6 {[%clk
0:00:04.1]} 67. Rh4 {[%clk 0:00:17.5]} 67... Rd5+ {[%clk 0:00:04.2]} 68. Kf6
{[%clk 0:00:17.2]} 68... Rd2 {[%clk 0:00:03.9]} 69. Rf4 {[%clk 0:00:17.1]} 69...
Re2 {[%clk 0:00:03.5]} 70. Kg5 {[%clk 0:00:16.2]} 70... Re1 {[%clk 0:00:03.8]}
71. Kf6 {[%clk 0:00:16.4]} 71... Rc1 {[%clk 0:00:03.8]} 72. Rd4 {[%clk
0:00:16.2]} 72... Rc4 {[%clk 0:00:04.1]} 73. Ke5 {[%clk 0:00:16.9]} 73... Rc3
{[%clk 0:00:03.9]} 74. Bg4 {[%clk 0:00:15.8]} 74... Rc1 {[%clk 0:00:04.4]} 75.
Bf5 {[%clk 0:00:16.2]} 75... Re1+ {[%clk 0:00:04.7]} 76. Kd6 {[%clk 0:00:16.1]}
76... Rc1 {[%clk 0:00:04.6]} 77. Be6 {[%clk 0:00:16.4]} 77... Re1 {[%clk
0:00:04.7]} 78. Bf7 {[%clk 0:00:16.6]} 78... Rf1 {[%clk 0:00:04.5]} 79. Be6
{[%clk 0:00:17.1]} 79... Rf6 {[%clk 0:00:04.8]} 80. Ke5 {[%clk 0:00:17.5]} 80...
Rh6 {[%clk 0:00:05.2]} 81. Kd6 {[%clk 0:00:18.1]} 81... Rh2 {[%clk 0:00:04.3]}
82. Ke5 {[%clk 0:00:18.5]} 82... Re2+ {[%clk 0:00:03.8]} 83. Kd6 {[%clk
0:00:19]} 83... Rc2 {[%clk 0:00:03.5]} 84. Bf7 {[%clk 0:00:19.1]} 84... Rc1
{[%clk 0:00:02.9]} 85. Be6 {[%clk 0:00:19.4]} 85... Rc2 {[%clk 0:00:02.7]} 86.
Bf7 {[%clk 0:00:19.9]} 86... Rc1 {[%clk 0:00:03.2]} 87. Be6 {[%clk 0:00:20.5]}
1/2-1/2

[Event "*** Titled Tuesday Blitz"]
[Site "Chess.com"]
[Date "2020.12.01"]
[Round "9"]
[White "PavelShkapenko"]
[Black "Piotrek1979"]
[Result "1-0"]
[WhiteElo "2697"]
[BlackElo "2498"]
[TimeControl "180+1"]
[EndTime "11:46:16 PST"]
[Termination "PavelShkapenko won on time"]

1. e4 {[%clk 0:03:00.9]} 1... c5 {[%clk 0:02:55.6]} 2. c3 {[%clk 0:03:00.7]}
2... e6 {[%clk 0:02:51.8]} 3. d4 {[%clk 0:03:00.3]} 3... d5 {[%clk 0:02:49.8]}
4. exd5 {[%clk 0:03:00.1]} 4... exd5 {[%clk 0:02:48.8]} 5. Nf3 {[%clk
0:02:59.8]} 5... Nc6 {[%clk 0:02:46.4]} 6. g3 {[%clk 0:03:00]} 6... Bd6 {[%clk
0:02:37.8]} 7. dxc5 {[%clk 0:02:59.3]} 7... Bxc5 {[%clk 0:02:36.7]} 8. Bg2
{[%clk 0:02:59.8]} 8... Nge7 {[%clk 0:02:36.3]} 9. O-O {[%clk 0:02:59.7]} 9...
O-O {[%clk 0:02:35.9]} 10. Nbd2 {[%clk 0:02:58.8]} 10... Bg4 {[%clk 0:02:30.5]}
11. Nb3 {[%clk 0:02:58.3]} 11... Bb6 {[%clk 0:02:29.8]} 12. Re1 {[%clk
0:02:58.7]} 12... Qd7 {[%clk 0:02:10.8]} 13. Be3 {[%clk 0:02:53.7]} 13... Bxe3
{[%clk 0:02:06.3]} 14. Rxe3 {[%clk 0:02:53.2]} 14... Rad8 {[%clk 0:01:50.8]} 15.
Qd2 {[%clk 0:02:29.8]} 15... Qd6 {[%clk 0:01:34.7]} 16. Nbd4 {[%clk 0:02:16.1]}
16... a6 {[%clk 0:01:32.6]} 17. Rae1 {[%clk 0:02:13.5]} 17... Ng6 {[%clk
0:01:28.2]} 18. Nxc6 {[%clk 0:01:39.3]} 18... bxc6 {[%clk 0:01:26.4]} 19. Qd4
{[%clk 0:01:39.1]} 19... Bc8 {[%clk 0:01:18.1]} 20. b4 {[%clk 0:01:20.9]} 20...
a5 {[%clk 0:01:17.5]} 21. a3 {[%clk 0:01:20.3]} 21... Bd7 {[%clk 0:01:02.7]} 22.
Ne5 {[%clk 0:01:18.8]} 22... Nxe5 {[%clk 0:01:00.9]} 23. Rxe5 {[%clk 0:01:18.5]}
23... axb4 {[%clk 0:01:00]} 24. axb4 {[%clk 0:01:17.9]} 24... Ra8 {[%clk
0:01:00.2]} 25. Bxd5 {[%clk 0:01:06]} 25... Kh8 {[%clk 0:00:41.5]} 26. Bc4
{[%clk 0:00:35.1]} 26... Qxd4 {[%clk 0:00:42.4]} 27. cxd4 {[%clk 0:00:35.5]}
27... Bh3 {[%clk 0:00:38]} 28. Rh5 {[%clk 0:00:23.9]} 28... Bg4 {[%clk
0:00:34.1]} 29. Rhe5 {[%clk 0:00:22.4]} 29... Rab8 {[%clk 0:00:29.2]} 30. b5
{[%clk 0:00:16.9]} 30... cxb5 {[%clk 0:00:28.2]} 31. Rxb5 {[%clk 0:00:16.2]}
31... Rbd8 {[%clk 0:00:28.4]} 32. d5 {[%clk 0:00:15.4]} 32... Bf3 {[%clk
0:00:28.1]} 33. Re3 {[%clk 0:00:14.9]} 33... Bg4 {[%clk 0:00:27.1]} 34. Kg2
{[%clk 0:00:14.9]} 34... Rd6 {[%clk 0:00:24.4]} 35. Rc5 {[%clk 0:00:14.3]} 35...
Bd7 {[%clk 0:00:23.5]} 36. Re7 {[%clk 0:00:13.3]} 36... Kg8 {[%clk 0:00:18.1]}
37. Bb3 {[%clk 0:00:11.7]} 37... Rd8 {[%clk 0:00:18.4]} 38. Kf3 {[%clk
0:00:11.2]} 38... Kf8 {[%clk 0:00:18.6]} 39. Re3 {[%clk 0:00:11]} 39... h5
{[%clk 0:00:19.1]} 40. h4 {[%clk 0:00:10.6]} 40... g6 {[%clk 0:00:18.5]} 41. Rc7
{[%clk 0:00:08.8]} 41... Rf6+ {[%clk 0:00:16.7]} 42. Ke2 {[%clk 0:00:08.2]}
42... Bg4+ {[%clk 0:00:15]} 43. Ke1 {[%clk 0:00:07.2]} 43... Rb6 {[%clk
0:00:15.1]} 44. f3 {[%clk 0:00:04.9]} 44... Bf5 {[%clk 0:00:13.8]} 45. d6 {[%clk
0:00:04.8]} 45... Rxb3 {[%clk 0:00:11.1]} 46. Rxb3 {[%clk 0:00:04.3]} 46... Rxd6
{[%clk 0:00:11.3]} 47. Re3 {[%clk 0:00:04.8]} 47... Be6 {[%clk 0:00:10.5]} 48.
Rcc3 {[%clk 0:00:04.9]} 48... Rb6 {[%clk 0:00:10.5]} 49. Red3 {[%clk 0:00:05.2]}
49... Ke7 {[%clk 0:00:09.9]} 50. Rd2 {[%clk 0:00:04.9]} 50... Rb4 {[%clk
0:00:09.5]} 51. Kf2 {[%clk 0:00:05.2]} 51... Kf6 {[%clk 0:00:09.4]} 52. Re3
{[%clk 0:00:05.8]} 52... Ra4 {[%clk 0:00:08.5]} 53. Rde2 {[%clk 0:00:06.3]}
53... Ra1 {[%clk 0:00:07.9]} 54. Re4 {[%clk 0:00:06.5]} 54... Ra6 {[%clk
0:00:08]} 55. Re1 {[%clk 0:00:06.8]} 55... Ra5 {[%clk 0:00:08.1]} 56. Rb4 {[%clk
0:00:07]} 56... Ra6 {[%clk 0:00:08.3]} 57. Re2 {[%clk 0:00:07.4]} 57... Ra3
{[%clk 0:00:08.3]} 58. Reb2 {[%clk 0:00:07.8]} 58... Bd5 {[%clk 0:00:07.2]} 59.
Rb6+ {[%clk 0:00:08]} 59... Kg7 {[%clk 0:00:07.1]} 60. f4 {[%clk 0:00:06.8]}
60... Rf3+ {[%clk 0:00:07.3]} 61. Ke2 {[%clk 0:00:07.2]} 61... Rxg3 {[%clk
0:00:07.1]} 62. f5 {[%clk 0:00:07.5]} 62... gxf5 {[%clk 0:00:06.3]} 63. Rd2
{[%clk 0:00:05.2]} 63... Be6 {[%clk 0:00:05.3]} 64. Kf2 {[%clk 0:00:05.2]} 64...
Rg4 {[%clk 0:00:04.3]} 65. Rbd6 {[%clk 0:00:05.4]} 65... Rxh4 {[%clk 0:00:03.9]}
66. R6d4 {[%clk 0:00:05.9]} 66... Rg4 {[%clk 0:00:02.9]} 67. Kf3 {[%clk
0:00:05.6]} 67... Kf6 {[%clk 0:00:02.6]} 68. Rxg4 {[%clk 0:00:04.7]} 68... fxg4+
{[%clk 0:00:03.5]} 69. Kf4 {[%clk 0:00:05.1]} 69... Kg6 {[%clk 0:00:03.5]} 70.
Rd8 {[%clk 0:00:04.5]} 70... h4 {[%clk 0:00:04.4]} 71. Rg8+ {[%clk 0:00:04.6]}
71... Kh7 {[%clk 0:00:03.7]} 72. Rg5 {[%clk 0:00:04.7]} 72... h3 {[%clk
0:00:02.6]} 73. Rh5+ {[%clk 0:00:04.6]} 73... Kg6 {[%clk 0:00:02.5]} 74. Rh4
{[%clk 0:00:04.8]} 74... Kf6 {[%clk 0:00:03.4]} 75. Rh6+ {[%clk 0:00:04.8]}
75... Ke7 {[%clk 0:00:03.7]} 76. Rh7 {[%clk 0:00:04.8]} 76... Kd6 {[%clk
0:00:02.8]} 77. Rh5 {[%clk 0:00:05.1]} 77... f5 {[%clk 0:00:03]} 78. Rh8 {[%clk
0:00:04.5]} 78... Kd5 {[%clk 0:00:03.1]} 79. Rd8+ {[%clk 0:00:04.5]} 79... Kc4
{[%clk 0:00:03.1]} 80. Rh8 {[%clk 0:00:04.1]} 80... Kd3 {[%clk 0:00:02.8]} 81.
Re8 {[%clk 0:00:04.2]} 81... Kd2 {[%clk 0:00:02.4]} 82. Rxe6 {[%clk 0:00:04.1]}
82... h2 {[%clk 0:00:01.8]} 83. Rh6 {[%clk 0:00:04]} 83... Ke2 {[%clk 0:00:02]}
84. Rxh2+ {[%clk 0:00:04.1]} 84... Kf1 {[%clk 0:00:01.9]} 85. Rb2 {[%clk
0:00:03.7]} 1-0

[Event "*** Titled Tuesday Blitz"]
[Site "Chess.com"]
[Date "2020.12.01"]
[Round "9"]
[White "coco_crc"]
[Black "Praslov"]
[Result "1-0"]
[WhiteElo "2196"]
[BlackElo "2394"]
[TimeControl "180+1"]
[EndTime "11:46:16 PST"]
[Termination "coco_crc won on time"]

1. e4 {[%clk 0:03:00.9]} 1... c6 {[%clk 0:02:58.2]} 2. d4 {[%clk 0:02:59.9]}
2... d5 {[%clk 0:02:58.1]} 3. exd5 {[%clk 0:03:00.8]} 3... cxd5 {[%clk
0:02:57.3]} 4. c4 {[%clk 0:03:01.3]} 4... Nf6 {[%clk 0:02:53.7]} 5. Nc3 {[%clk
0:03:01.3]} 5... Nc6 {[%clk 0:02:51.9]} 6. Nf3 {[%clk 0:03:01.2]} 6... Bg4
{[%clk 0:02:50.2]} 7. cxd5 {[%clk 0:03:01.2]} 7... Nxd5 {[%clk 0:02:49.1]} 8.
Qb3 {[%clk 0:03:01.3]} 8... Bxf3 {[%clk 0:02:48.7]} 9. gxf3 {[%clk 0:03:02.2]}
9... e6 {[%clk 0:02:48.6]} 10. Qxb7 {[%clk 0:02:59.4]} 10... Nxd4 {[%clk
0:02:47.8]} 11. Bb5+ {[%clk 0:02:58.9]} 11... Nxb5 {[%clk 0:02:47.7]} 12. Qc6+
{[%clk 0:02:59.1]} 12... Ke7 {[%clk 0:02:46.5]} 13. Qxb5 {[%clk 0:02:57.8]}
13... Qd7 {[%clk 0:02:46.2]} 14. Bg5+ {[%clk 0:02:56.8]} 14... f6 {[%clk
0:02:44.1]} 15. Nxd5+ {[%clk 0:02:51]} 15... Qxd5 {[%clk 0:02:40.8]} 16. Qxd5
{[%clk 0:02:50.9]} 16... exd5 {[%clk 0:02:40.4]} 17. Be3 {[%clk 0:02:51.8]}
17... Ke6 {[%clk 0:02:36.4]} 18. O-O-O {[%clk 0:02:51]} 18... Bb4 {[%clk
0:02:32.9]} 19. a3 {[%clk 0:02:48.1]} 19... Ba5 {[%clk 0:02:17.4]} 20. b4 {[%clk
0:02:42.6]} 20... Bb6 {[%clk 0:02:13.7]} 21. Rhe1 {[%clk 0:02:42.4]} 21... Bxe3+
{[%clk 0:01:16]} 22. Rxe3+ {[%clk 0:02:43.3]} 22... Kd6 {[%clk 0:00:49.6]} 23.
Red3 {[%clk 0:02:42.9]} 23... Rhc8+ {[%clk 0:00:46.7]} 24. Kb2 {[%clk
0:02:40.4]} 24... Rc7 {[%clk 0:00:41.6]} 25. Rxd5+ {[%clk 0:02:40.3]} 25... Ke6
{[%clk 0:00:41.5]} 26. Rd6+ {[%clk 0:02:34.1]} 26... Ke7 {[%clk 0:00:39.2]} 27.
R6d5 {[%clk 0:02:24.7]} 27... Rac8 {[%clk 0:00:37.2]} 28. Re1+ {[%clk
0:02:14.8]} 28... Kf7 {[%clk 0:00:35.7]} 29. Re2 {[%clk 0:02:14.8]} 29... g5
{[%clk 0:00:33.9]} 30. Red2 {[%clk 0:02:13.9]} 30... Ke6 {[%clk 0:00:32.2]} 31.
Rd6+ {[%clk 0:02:12.5]} 31... Kf5 {[%clk 0:00:31.3]} 32. R2d5+ {[%clk
0:02:05.5]} 32... Kg6 {[%clk 0:00:29.6]} 33. Rd2 {[%clk 0:02:00.1]} 33... Rc3
{[%clk 0:00:28.4]} 34. R6d3 {[%clk 0:01:56.4]} 34... R3c4 {[%clk 0:00:28.3]} 35.
Rd4 {[%clk 0:01:51.2]} 35... Rc3 {[%clk 0:00:27.9]} 36. R4d3 {[%clk 0:01:45.3]}
36... R3c4 {[%clk 0:00:28]} 37. Rd7 {[%clk 0:01:42.2]} 37... a5 {[%clk
0:00:21.9]} 38. bxa5 {[%clk 0:01:37]} 38... Rb8+ {[%clk 0:00:20.8]} 39. Ka2
{[%clk 0:01:34]} 39... Rc3 {[%clk 0:00:20.1]} 40. Rb2 {[%clk 0:01:18.7]} 40...
Ra8 {[%clk 0:00:18.1]} 41. f4 {[%clk 0:00:37.5]} 41... Rxa5 {[%clk 0:00:16.2]}
42. fxg5 {[%clk 0:00:35.5]} 42... Rcxa3+ {[%clk 0:00:15.8]} 43. Kb1 {[%clk
0:00:35.6]} 43... Rxg5 {[%clk 0:00:15.6]} 44. Rbb7 {[%clk 0:00:26.5]} 44... h5
{[%clk 0:00:15.3]} 45. Rg7+ {[%clk 0:00:22.9]} 45... Kf5 {[%clk 0:00:14.7]} 46.
Rb5+ {[%clk 0:00:18.6]} 46... Kg4 {[%clk 0:00:14.2]} 47. Rgxg5+ {[%clk
0:00:15.9]} 47... fxg5 {[%clk 0:00:13.6]} 48. Kc1 {[%clk 0:00:16.8]} 48... Ra1+
{[%clk 0:00:12.2]} 49. Kd2 {[%clk 0:00:16.8]} 49... Ra2+ {[%clk 0:00:12.2]} 50.
Ke1 {[%clk 0:00:16.7]} 50... Kh4 {[%clk 0:00:11.1]} 51. Kf1 {[%clk 0:00:16]}
51... g4 {[%clk 0:00:11]} 52. Kg2 {[%clk 0:00:15.4]} 52... Ra3 {[%clk
0:00:11.1]} 53. Rc5 {[%clk 0:00:14.6]} 53... Rf3 {[%clk 0:00:10.8]} 54. Rb5
{[%clk 0:00:14.3]} 54... Rf6 {[%clk 0:00:11]} 55. Rc5 {[%clk 0:00:14.2]} 55...
Re6 {[%clk 0:00:11.3]} 56. Ra5 {[%clk 0:00:14.1]} 56... Rb6 {[%clk 0:00:11.4]}
57. Rc5 {[%clk 0:00:14]} 57... Rb3 {[%clk 0:00:11.3]} 58. Ra5 {[%clk 0:00:13.2]}
58... Rc3 {[%clk 0:00:11.5]} 59. Rb5 {[%clk 0:00:13.3]} 59... Rc7 {[%clk
0:00:10.9]} 60. Ra5 {[%clk 0:00:13.3]} 60... Rg7 {[%clk 0:00:11.5]} 61. Rb5
{[%clk 0:00:12.9]} 61... Rg5 {[%clk 0:00:12]} 62. Rb3 {[%clk 0:00:12]} 62... Rf5
{[%clk 0:00:12.4]} 63. Rc3 {[%clk 0:00:11.9]} 63... Kg5 {[%clk 0:00:12.7]} 64.
Rc8 {[%clk 0:00:10.4]} 64... Re5 {[%clk 0:00:12]} 65. Rg8+ {[%clk 0:00:10.2]}
65... Kf4 {[%clk 0:00:11.5]} 66. Rf8+ {[%clk 0:00:10.7]} 66... Rf5 {[%clk
0:00:11.3]} 67. Ra8 {[%clk 0:00:10.4]} 67... h4 {[%clk 0:00:10.7]} 68. Ra4+
{[%clk 0:00:10.4]} 68... Kg5 {[%clk 0:00:10.6]} 69. Ra3 {[%clk 0:00:09]} 69...
h3+ {[%clk 0:00:10.6]} 70. Kg3 {[%clk 0:00:08.8]} 70... Rd5 {[%clk 0:00:09.7]}
71. Rb3 {[%clk 0:00:08.4]} 71... Kf5 {[%clk 0:00:08.4]} 72. Ra3 {[%clk
0:00:07.9]} 72... Kg5 {[%clk 0:00:08.3]} 73. Rb3 {[%clk 0:00:07.7]} 73... Re5
{[%clk 0:00:08.5]} 74. Rb4 {[%clk 0:00:05.7]} 74... Rf5 {[%clk 0:00:06.7]} 75.
Rxg4+ {[%clk 0:00:05.4]} 75... Kh5 {[%clk 0:00:06.5]} 76. Rh4+ {[%clk
0:00:05.5]} 76... Kg5 {[%clk 0:00:06]} 77. Rxh3 {[%clk 0:00:04.3]} 77... Rc5
{[%clk 0:00:04.7]} 78. Kg2 {[%clk 0:00:04.4]} 78... Rc2 {[%clk 0:00:04.1]} 79.
Rg3+ {[%clk 0:00:05.3]} 79... Kf4 {[%clk 0:00:04]} 80. Rf3+ {[%clk 0:00:05.6]}
80... Kg4 {[%clk 0:00:03.5]} 81. Ra3 {[%clk 0:00:05.9]} 81... Kg5 {[%clk
0:00:02.6]} 82. Kg3 {[%clk 0:00:04.2]} 82... Rc1 {[%clk 0:00:01.8]} 83. Ra5+
{[%clk 0:00:04.2]} 83... Kf6 {[%clk 0:00:01.5]} 84. Ra3 {[%clk 0:00:05.1]} 1-0